[Event "*** Titled Tuesday Blitz"]
[Site "Chess.com"]
[Date "2020.05.19"]
[Round "8"]
[White "Bigfish1995"]
[Black "Onischuk_V"]
[Result "1/2-1/2"]
[WhiteElo "3006"]
[BlackElo "2904"]
[TimeControl "180+1"]
[EndTime "13:37:49 PDT"]
[Termination "Game drawn - insufficient material"]

1. e4 {[%clk 0:03:00.9]} 1... d6 {[%clk 0:03:00.3]} 2. d4 {[%clk 0:03:00.9]}
2... Nf6 {[%clk 0:03:01]} 3. Nc3 {[%clk 0:03:00]} 3... g6 {[%clk 0:03:01.5]} 4.
Be3 {[%clk 0:02:53.1]} 4... c6 {[%clk 0:03:00.4]} 5. a4 {[%clk 0:02:49.1]} 5...
Nbd7 {[%clk 0:02:56]} 6. Be2 {[%clk 0:02:41.4]} 6... e5 {[%clk 0:02:49.3]} 7. d5
{[%clk 0:02:40.5]} 7... c5 {[%clk 0:02:45]} 8. Nf3 {[%clk 0:02:38.8]} 8... a6
{[%clk 0:02:42.8]} 9. Nd2 {[%clk 0:02:38]} 9... Bg7 {[%clk 0:02:30.3]} 10. Nc4
{[%clk 0:02:35.9]} 10... Qc7 {[%clk 0:02:30.9]} 11. g4 {[%clk 0:02:24.3]} 11...
Nb6 {[%clk 0:02:10.6]} 12. g5 {[%clk 0:02:13.1]} 12... Nfd7 {[%clk 0:02:04.8]}
13. Nd2 {[%clk 0:02:08]} 13... Rb8 {[%clk 0:01:59.7]} 14. h4 {[%clk 0:02:00.2]}
14... h5 {[%clk 0:01:56.1]} 15. a5 {[%clk 0:01:56.8]} 15... Na8 {[%clk
0:01:55.6]} 16. Nc4 {[%clk 0:01:56.9]} 16... b5 {[%clk 0:01:44.1]} 17. axb6
{[%clk 0:01:56.5]} 17... Naxb6 {[%clk 0:01:44.7]} 18. Na5 {[%clk 0:01:56.6]}
18... O-O {[%clk 0:01:35.6]} 19. Nc6 {[%clk 0:01:52.4]} 19... Ra8 {[%clk
0:01:35.7]} 20. Bxh5 {[%clk 0:01:49.4]} 20... Re8 {[%clk 0:01:26.5]} 21. Be2
{[%clk 0:01:46.8]} 21... Nf8 {[%clk 0:01:14.6]} 22. b3 {[%clk 0:01:32.1]} 22...
Bd7 {[%clk 0:01:10.5]} 23. Na5 {[%clk 0:01:31.5]} 23... Nc8 {[%clk 0:01:00.5]}
24. Bd3 {[%clk 0:01:29.4]} 24... Na7 {[%clk 0:00:53.7]} 25. Nc6 {[%clk
0:01:09.6]} 25... Nxc6 {[%clk 0:00:19.6]} 26. dxc6 {[%clk 0:01:09.8]} 26... Qxc6
{[%clk 0:00:17.6]} 27. h5 {[%clk 0:01:09.7]} 27... Be6 {[%clk 0:00:16.6]} 28.
Qf3 {[%clk 0:01:03.3]} 28... gxh5 {[%clk 0:00:10.3]} 29. Qxh5 {[%clk 0:00:54.8]}
29... Ng6 {[%clk 0:00:10.2]} 30. Bc4 {[%clk 0:00:40.9]} 30... Kf8 {[%clk
0:00:04.4]} 31. Bxe6 {[%clk 0:00:38]} 31... Rxe6 {[%clk 0:00:04.2]} 32. Nd5
{[%clk 0:00:38.5]} 32... c4 {[%clk 0:00:03.8]} 33. b4 {[%clk 0:00:30]} 33... Nf4
{[%clk 0:00:03.1]} 34. Qf3 {[%clk 0:00:23.5]} 34... Qb7 {[%clk 0:00:02.5]} 35.
O-O {[%clk 0:00:06.8]} 35... Nxd5 {[%clk 0:00:02.4]} 36. exd5 {[%clk 0:00:07.7]}
36... Rg6 {[%clk 0:00:02.7]} 37. Qe4 {[%clk 0:00:07.2]} 37... Bf6 {[%clk
0:00:02.6]} 38. Qf5 {[%clk 0:00:04.3]} 38... Qe7 {[%clk 0:00:02.1]} 39. f4
{[%clk 0:00:02]} 39... exf4 {[%clk 0:00:02.1]} 40. Bxf4 {[%clk 0:00:02.6]} 40...
Bxg5 {[%clk 0:00:02.7]} 41. Bg3 {[%clk 0:00:02.8]} 41... Be3+ {[%clk 0:00:02.8]}
42. Kg2 {[%clk 0:00:02.8]} 42... Kg7 {[%clk 0:00:03.3]} 43. Rf3 {[%clk 0:00:03]}
43... Bd4 {[%clk 0:00:03.1]} 44. Raf1 {[%clk 0:00:03]} 44... Be5 {[%clk
0:00:02.8]} 45. Qxf7+ {[%clk 0:00:02.6]} 45... Qxf7 {[%clk 0:00:03.1]} 46. Rxf7+
{[%clk 0:00:03.5]} 46... Kh8 {[%clk 0:00:02.5]} 47. Rh1+ {[%clk 0:00:02.6]}
47... Kg8 {[%clk 0:00:02.4]} 48. Rf3 {[%clk 0:00:03.2]} 48... Rf8 {[%clk
0:00:02.5]} 49. Re3 {[%clk 0:00:02.3]} 49... Rf7 {[%clk 0:00:02.2]} 50. Rh3
{[%clk 0:00:02.3]} 50... Rfg7 {[%clk 0:00:02.4]} 51. c3 {[%clk 0:00:02.1]} 51...
Kf7 {[%clk 0:00:02.5]} 52. Rf3+ {[%clk 0:00:02.4]} 52... Ke7 {[%clk 0:00:02.8]}
53. Kf2 {[%clk 0:00:03]} 53... Rxg3 {[%clk 0:00:02.2]} 54. Rhxg3 {[%clk
0:00:03.4]} 54... Bxg3+ {[%clk 0:00:02.6]} 55. Rxg3 {[%clk 0:00:04.3]} 55...
Rxg3 {[%clk 0:00:02.8]} 56. Kxg3 {[%clk 0:00:04.7]} 56... Kf6 {[%clk 0:00:03.4]}
57. Kf4 {[%clk 0:00:05.1]} 57... Kg6 {[%clk 0:00:03.9]} 58. Ke4 {[%clk
0:00:05.7]} 58... Kg5 {[%clk 0:00:04.1]} 59. Kd4 {[%clk 0:00:05.9]} 59... Kf4
{[%clk 0:00:04.7]} 60. Kxc4 {[%clk 0:00:05.1]} 60... Ke4 {[%clk 0:00:05.3]} 61.
b5 {[%clk 0:00:02]} 61... axb5+ {[%clk 0:00:05.1]} 62. Kxb5 {[%clk 0:00:01.7]}
62... Kxd5 {[%clk 0:00:05.7]} 63. c4+ {[%clk 0:00:02.2]} 63... Kd4 {[%clk
0:00:06.2]} 64. Kc6 {[%clk 0:00:02.8]} 64... Kxc4 {[%clk 0:00:06.6]} 65. Kxd6
{[%clk 0:00:03.7]} 1/2-1/2

[Event "*** Titled Tuesday Blitz"]
[Site "Chess.com"]
[Date "2020.05.19"]
[Round "8"]
[White "SlavenPastar"]
[Black "1g41-0"]
[Result "1/2-1/2"]
[WhiteElo "2400"]
[BlackElo "2516"]
[TimeControl "180+1"]
[EndTime "13:37:50 PDT"]
[Termination "Game drawn - timeout vs insufficient material"]

1. d4 {[%clk 0:03:00.9]} 1... Nf6 {[%clk 0:02:58.5]} 2. c4 {[%clk 0:02:58]} 2...
g6 {[%clk 0:02:57.5]} 3. Nc3 {[%clk 0:02:52.5]} 3... Bg7 {[%clk 0:02:56.8]} 4.
Bg5 {[%clk 0:02:52.1]} 4... d6 {[%clk 0:02:57.5]} 5. e3 {[%clk 0:02:52.1]} 5...
O-O {[%clk 0:02:58.1]} 6. Nf3 {[%clk 0:02:52.5]} 6... h6 {[%clk 0:02:58.8]} 7.
Bh4 {[%clk 0:02:52.1]} 7... Nbd7 {[%clk 0:02:59.3]} 8. Be2 {[%clk 0:02:52]} 8...
c6 {[%clk 0:02:58.5]} 9. O-O {[%clk 0:02:52.2]} 9... e5 {[%clk 0:02:55.1]} 10.
d5 {[%clk 0:02:51.2]} 10... c5 {[%clk 0:02:45.1]} 11. Nd2 {[%clk 0:02:50.1]}
11... g5 {[%clk 0:02:36]} 12. Bg3 {[%clk 0:02:49.7]} 12... Ne8 {[%clk
0:02:36.7]} 13. f4 {[%clk 0:02:46.7]} 13... f5 {[%clk 0:02:28.9]} 14. Bd3 {[%clk
0:02:36.1]} 14... gxf4 {[%clk 0:02:04.4]} 15. exf4 {[%clk 0:02:34.9]} 15... e4
{[%clk 0:02:04.9]} 16. Be2 {[%clk 0:02:28.2]} 16... Nef6 {[%clk 0:01:48.8]} 17.
Bh4 {[%clk 0:02:27.2]} 17... a6 {[%clk 0:01:48]} 18. a4 {[%clk 0:02:26.2]} 18...
Qe8 {[%clk 0:01:46.5]} 19. Qc2 {[%clk 0:02:21.5]} 19... Qg6 {[%clk 0:01:39.6]}
20. Nd1 {[%clk 0:02:21.7]} 20... Ng4 {[%clk 0:01:21.7]} 21. h3 {[%clk
0:02:17.4]} 21... Bd4+ {[%clk 0:01:07.1]} 22. Kh1 {[%clk 0:02:08.7]} 22... Ngf6
{[%clk 0:00:56.5]} 23. Nb3 {[%clk 0:02:03]} 23... Nh5 {[%clk 0:00:49.9]} 24. Qd2
{[%clk 0:01:37.7]} 24... Bg7 {[%clk 0:00:41]} 25. Bxh5 {[%clk 0:01:26.8]} 25...
Qxh5 {[%clk 0:00:41.9]} 26. Be7 {[%clk 0:01:26.8]} 26... Re8 {[%clk 0:00:26.2]}
27. Bxd6 {[%clk 0:01:24.5]} 27... Nf6 {[%clk 0:00:26.9]} 28. Be5 {[%clk
0:01:12.5]} 28... Kh7 {[%clk 0:00:20.5]} 29. Ne3 {[%clk 0:01:06.8]} 29... Qg6
{[%clk 0:00:17.6]} 30. Nxc5 {[%clk 0:01:02.9]} 30... h5 {[%clk 0:00:17.3]} 31.
Qf2 {[%clk 0:00:46.5]} 31... Bf8 {[%clk 0:00:17.1]} 32. Nb3 {[%clk 0:00:40.4]}
32... Nd7 {[%clk 0:00:13.7]} 33. Bc3 {[%clk 0:00:36]} 33... Bh6 {[%clk 0:00:13]}
34. Nd4 {[%clk 0:00:31.7]} 34... Nc5 {[%clk 0:00:12.4]} 35. Qh4 {[%clk
0:00:19.8]} 35... Nd3 {[%clk 0:00:12.9]} 36. Rad1 {[%clk 0:00:16.4]} 36... Bd7
{[%clk 0:00:13.3]} 37. b3 {[%clk 0:00:15.2]} 37... Rg8 {[%clk 0:00:13.7]} 38.
Ne2 {[%clk 0:00:09.7]} 38... Rae8 {[%clk 0:00:10.9]} 39. Rg1 {[%clk 0:00:09.5]}
39... b5 {[%clk 0:00:09.1]} 40. axb5 {[%clk 0:00:07]} 40... axb5 {[%clk
0:00:10]} 41. Rgf1 {[%clk 0:00:06.3]} 41... bxc4 {[%clk 0:00:09.5]} 42. bxc4
{[%clk 0:00:07.2]} 42... Ra8 {[%clk 0:00:09.4]} 43. Qf6 {[%clk 0:00:07.3]} 43...
Qxf6 {[%clk 0:00:08.7]} 44. Bxf6 {[%clk 0:00:08.2]} 44... Ra2 {[%clk 0:00:08.6]}
45. Nc3 {[%clk 0:00:06.7]} 45... Nf2+ {[%clk 0:00:08.6]} 46. Rxf2 {[%clk
0:00:04.9]} 46... Rxf2 {[%clk 0:00:09.5]} 47. c5 {[%clk 0:00:05.1]} 47... Bxf4
{[%clk 0:00:10.1]} 48. c6 {[%clk 0:00:05.2]} 48... Bxe3 {[%clk 0:00:09.1]} 49.
cxd7 {[%clk 0:00:05.2]} 49... Rgxg2 {[%clk 0:00:09.8]} 50. Be5 {[%clk
0:00:03.9]} 50... f4 {[%clk 0:00:09.9]} 51. Bxf4 {[%clk 0:00:03.6]} 51... Bxf4
{[%clk 0:00:10.8]} 52. d8=Q {[%clk 0:00:02.9]} 52... Rh2+ {[%clk 0:00:11.2]} 53.
Kg1 {[%clk 0:00:03.5]} 53... Rfg2+ {[%clk 0:00:12]} 54. Kf1 {[%clk 0:00:04.2]}
54... Be3 {[%clk 0:00:12.9]} 55. Qe7+ {[%clk 0:00:04]} 55... Kh6 {[%clk
0:00:07.8]} 56. Qe6+ {[%clk 0:00:04.2]} 56... Rg6 {[%clk 0:00:06.7]} 57. Qxg6+
{[%clk 0:00:03.5]} 57... Kxg6 {[%clk 0:00:06.9]} 58. Nxe4 {[%clk 0:00:04.4]}
58... Bg5 {[%clk 0:00:05.1]} 59. Nxg5 {[%clk 0:00:04.1]} 59... Kxg5 {[%clk
0:00:06]} 60. d6 {[%clk 0:00:05]} 60... Rh1+ {[%clk 0:00:06.3]} 61. Ke2 {[%clk
0:00:04.9]} 61... Rxd1 {[%clk 0:00:07.2]} 62. Kxd1 {[%clk 0:00:05.8]} 62... Kf6
{[%clk 0:00:08.1]} 63. Ke2 {[%clk 0:00:06.2]} 63... Ke6 {[%clk 0:00:08.5]} 64.
Kf3 {[%clk 0:00:07.1]} 64... Kxd6 {[%clk 0:00:09]} 65. Kf4 {[%clk 0:00:08]}
65... Ke7 {[%clk 0:00:09.7]} 66. Kg5 {[%clk 0:00:08.6]} 66... Kf8 {[%clk
0:00:10.6]} 67. Kxh5 {[%clk 0:00:09.5]} 67... Kg8 {[%clk 0:00:11.5]} 68. Kg6
{[%clk 0:00:10.3]} 68... Kh8 {[%clk 0:00:12.4]} 69. h4 {[%clk 0:00:11.2]} 69...
Kg8 {[%clk 0:00:13.3]} 70. h5 {[%clk 0:00:12.1]} 70... Kh8 {[%clk 0:00:14.2]}
71. h6 {[%clk 0:00:13]} 71... Kg8 {[%clk 0:00:15.1]} 72. h7+ {[%clk 0:00:13.9]}
72... Kh8 {[%clk 0:00:16]} 1/2-1/2

[Event "*** Titled Tuesday Blitz"]
[Site "Chess.com"]
[Date "2020.05.19"]
[Round "8"]
[White "Parkas"]
[Black "Ana_Berke"]
[Result "1-0"]
[WhiteElo "2280"]
[BlackElo "2099"]
[TimeControl "180+1"]
[EndTime "13:37:50 PDT"]
[Termination "Parkas won by resignation"]

1. e4 {[%clk 0:03:00.9]} 1... c5 {[%clk 0:02:59.5]} 2. Ne2 {[%clk 0:03:01]} 2...
d6 {[%clk 0:02:57.5]} 3. g3 {[%clk 0:03:00]} 3... Nf6 {[%clk 0:02:56.8]} 4. Bg2
{[%clk 0:03:00.2]} 4... Nc6 {[%clk 0:02:56.7]} 5. d4 {[%clk 0:03:00.4]} 5...
cxd4 {[%clk 0:02:56.4]} 6. Nxd4 {[%clk 0:03:01.3]} 6... g6 {[%clk 0:02:55.9]} 7.
O-O {[%clk 0:03:01.3]} 7... Bg7 {[%clk 0:02:56]} 8. Nc3 {[%clk 0:03:00.8]} 8...
O-O {[%clk 0:02:56]} 9. Nde2 {[%clk 0:03:01.1]} 9... a6 {[%clk 0:02:55.5]} 10.
Nd5 {[%clk 0:02:56.1]} 10... Be6 {[%clk 0:02:52.7]} 11. Nef4 {[%clk 0:02:54.6]}
11... Bd7 {[%clk 0:02:51.8]} 12. Be3 {[%clk 0:02:39.9]} 12... Nxd5 {[%clk
0:02:44.5]} 13. exd5 {[%clk 0:02:40]} 13... Ne5 {[%clk 0:02:43.8]} 14. Bd4
{[%clk 0:02:37.8]} 14... Rc8 {[%clk 0:02:43]} 15. b3 {[%clk 0:02:36.3]} 15... b5
{[%clk 0:02:37.9]} 16. Rc1 {[%clk 0:02:27.5]} 16... b4 {[%clk 0:02:34.1]} 17.
Re1 {[%clk 0:02:16.4]} 17... a5 {[%clk 0:02:32.7]} 18. Nd3 {[%clk 0:01:50]}
18... Nf3+ {[%clk 0:02:15.2]} 19. Qxf3 {[%clk 0:01:45.2]} 19... Bxd4 {[%clk
0:02:15]} 20. Qe4 {[%clk 0:01:43.5]} 20... Bf6 {[%clk 0:02:13.2]} 21. h4 {[%clk
0:01:40.5]} 21... Bf5 {[%clk 0:02:09.5]} 22. Qe3 {[%clk 0:01:38.1]} 22... h5
{[%clk 0:01:59.5]} 23. Be4 {[%clk 0:01:35.1]} 23... Bxe4 {[%clk 0:01:51.4]} 24.
Qxe4 {[%clk 0:01:36]} 24... Qd7 {[%clk 0:01:50.3]} 25. Re2 {[%clk 0:01:33.8]}
25... Rfe8 {[%clk 0:01:42.8]} 26. Rce1 {[%clk 0:01:17.3]} 26... Rc7 {[%clk
0:01:40.9]} 27. Nf4 {[%clk 0:01:06.7]} 27... Kg7 {[%clk 0:01:38.7]} 28. Ng2
{[%clk 0:00:56.4]} 28... Rec8 {[%clk 0:01:37.1]} 29. Ne3 {[%clk 0:00:56.6]}
29... Bc3 {[%clk 0:01:32.6]} 30. Rd1 {[%clk 0:00:55]} 30... Bf6 {[%clk
0:01:32.3]} 31. Nc4 {[%clk 0:00:54.8]} 31... Rc5 {[%clk 0:01:31.2]} 32. Nb6
{[%clk 0:00:53.4]} 32... Qc7 {[%clk 0:01:27.9]} 33. Nxc8 {[%clk 0:00:53.3]}
33... Qxc8 {[%clk 0:01:28.1]} 34. Kh2 {[%clk 0:00:53.5]} 34... Qc7 {[%clk
0:01:25.2]} 35. Kg2 {[%clk 0:00:52.2]} 35... Rc3 {[%clk 0:01:24.3]} 36. Rde1
{[%clk 0:00:48.3]} 36... Be5 {[%clk 0:01:22.6]} 37. Rd1 {[%clk 0:00:45.8]} 37...
Bf6 {[%clk 0:01:22.4]} 38. Rdd2 {[%clk 0:00:46.2]} 38... Be5 {[%clk 0:01:21.9]}
39. Re3 {[%clk 0:00:46.3]} 39... Rc5 {[%clk 0:01:17.7]} 40. Rf3 {[%clk
0:00:45.4]} 40... Bf6 {[%clk 0:01:17.8]} 41. Kh1 {[%clk 0:00:41.1]} 41... Qb7
{[%clk 0:01:15.5]} 42. Rf4 {[%clk 0:00:34.2]} 42... Be5 {[%clk 0:01:12.4]} 43.
Rf3 {[%clk 0:00:32.5]} 43... Bc3 {[%clk 0:01:11.5]} 44. Re2 {[%clk 0:00:31]}
44... Bf6 {[%clk 0:01:11.3]} 45. Qd3 {[%clk 0:00:29.4]} 45... Rxd5 {[%clk
0:01:08.5]} 46. Qe4 {[%clk 0:00:29.4]} 46... Rd1+ {[%clk 0:01:01.5]} 47. Kg2
{[%clk 0:00:29.2]} 47... Qc7 {[%clk 0:01:00.7]} 48. Qa8 {[%clk 0:00:24.3]} 48...
Rc1 {[%clk 0:00:58.9]} 49. Rf4 {[%clk 0:00:19.2]} 49... Rxc2 {[%clk 0:00:57.1]}
50. Rxc2 {[%clk 0:00:20.1]} 50... Qxc2 {[%clk 0:00:57]} 51. Qxa5 {[%clk
0:00:20.6]} 51... Qc6+ {[%clk 0:00:55.7]} 52. Rf3 {[%clk 0:00:20.4]} 52... Bc3
{[%clk 0:00:52.7]} 53. Qa7 {[%clk 0:00:18.2]} 53... Bf6 {[%clk 0:00:49.2]} 54.
Qe3 {[%clk 0:00:17.5]} 54... d5 {[%clk 0:00:48.2]} 55. Kh2 {[%clk 0:00:17]}
55... d4 {[%clk 0:00:48.3]} 56. Qd3 {[%clk 0:00:17.4]} 56... Qc3 {[%clk
0:00:47.1]} 57. Kg2 {[%clk 0:00:12.6]} 57... Qb2 {[%clk 0:00:45.7]} 58. Qc4
{[%clk 0:00:09.9]} 58... Qxa2 {[%clk 0:00:42.5]} 59. Qxb4 {[%clk 0:00:09.8]}
59... Qc2 {[%clk 0:00:42.1]} 60. Qc4 {[%clk 0:00:09.5]} 60... Qd1 {[%clk
0:00:34.8]} 61. b4 {[%clk 0:00:08.6]} 61... Qb1 {[%clk 0:00:32.2]} 62. b5 {[%clk
0:00:07.9]} 62... e6 {[%clk 0:00:29]} 63. Qc6 {[%clk 0:00:06.7]} 63... d3 {[%clk
0:00:27.1]} 64. Qd7 {[%clk 0:00:03.3]} 64... d2 {[%clk 0:00:23.3]} 65. Qxd2
{[%clk 0:00:04.2]} 65... Qxb5 {[%clk 0:00:23]} 66. Qf4 {[%clk 0:00:04.8]} 66...
Qe5 {[%clk 0:00:22]} 67. Qxe5 {[%clk 0:00:04.8]} 67... Bxe5 {[%clk 0:00:22.4]}
68. Rd3 {[%clk 0:00:05.7]} 68... Kf6 {[%clk 0:00:21.8]} 69. Kf3 {[%clk
0:00:06.2]} 69... Bb2 {[%clk 0:00:21.2]} 70. Rb3 {[%clk 0:00:07.1]} 70... e5
{[%clk 0:00:20.6]} 71. Rxb2 {[%clk 0:00:07.1]} 1-0

[Event "*** Titled Tuesday Blitz"]
[Site "Chess.com"]
[Date "2020.05.19"]
[Round "8"]
[White "Justinz"]
[Black "Patolindo"]
[Result "1-0"]
[WhiteElo "2310"]
[BlackElo "2110"]
[TimeControl "180+1"]
[EndTime "13:37:53 PDT"]
[Termination "Justinz won by resignation"]

1. e4 {[%clk 0:03:00.9]} 1... c5 {[%clk 0:02:59.3]} 2. Nf3 {[%clk 0:03:00.6]}
2... e6 {[%clk 0:02:58.9]} 3. d4 {[%clk 0:02:59.8]} 3... cxd4 {[%clk 0:02:59.4]}
4. Nxd4 {[%clk 0:02:59.8]} 4... Nc6 {[%clk 0:02:58.4]} 5. Nc3 {[%clk 0:02:59.6]}
5... Qc7 {[%clk 0:02:57.7]} 6. Be2 {[%clk 0:02:59.1]} 6... a6 {[%clk 0:02:58.1]}
7. O-O {[%clk 0:02:58.8]} 7... Bb4 {[%clk 0:02:56.8]} 8. Qd3 {[%clk 0:02:49.7]}
8... Nge7 {[%clk 0:02:54.3]} 9. a3 {[%clk 0:02:47.9]} 9... Bc5 {[%clk
0:02:52.3]} 10. Nb3 {[%clk 0:02:45.8]} 10... Ba7 {[%clk 0:02:51.2]} 11. Kh1
{[%clk 0:02:42.7]} 11... Ne5 {[%clk 0:02:48]} 12. Qg3 {[%clk 0:02:42.3]} 12...
d6 {[%clk 0:02:39.5]} 13. f4 {[%clk 0:02:41.9]} 13... N5g6 {[%clk 0:02:37.4]}
14. f5 {[%clk 0:02:41.2]} 14... exf5 {[%clk 0:02:31.4]} 15. Bg5 {[%clk
0:02:35.1]} 15... f4 {[%clk 0:02:28.5]} 16. Bxf4 {[%clk 0:02:32.6]} 16... Nxf4
{[%clk 0:02:28.1]} 17. Rxf4 {[%clk 0:02:30.1]} 17... O-O {[%clk 0:02:23.2]} 18.
Bd3 {[%clk 0:02:26.7]} 18... Be6 {[%clk 0:02:14.3]} 19. h4 {[%clk 0:02:24.3]}
19... Ng6 {[%clk 0:02:12.1]} 20. Rff1 {[%clk 0:02:23.5]} 20... Qe7 {[%clk
0:02:05.2]} 21. h5 {[%clk 0:02:23.4]} 21... Ne5 {[%clk 0:01:58.6]} 22. Rae1
{[%clk 0:02:17.7]} 22... Kh8 {[%clk 0:01:48.1]} 23. Nd5 {[%clk 0:02:13]} 23...
Bxd5 {[%clk 0:01:46.9]} 24. exd5 {[%clk 0:02:13]} 24... Rae8 {[%clk 0:01:42.3]}
25. c3 {[%clk 0:02:03.9]} 25... Qd7 {[%clk 0:01:31.7]} 26. Bc2 {[%clk
0:01:56.1]} 26... Qg4 {[%clk 0:01:22.1]} 27. Qh2 {[%clk 0:01:49.1]} 27... Qg5
{[%clk 0:01:12.8]} 28. Rf5 {[%clk 0:01:40.2]} 28... Ng4 {[%clk 0:01:02.1]} 29.
Rxe8 {[%clk 0:01:34.6]} 29... Rxe8 {[%clk 0:01:01]} 30. Qg3 {[%clk 0:01:29.3]}
30... Qe7 {[%clk 0:00:37.5]} 31. Rf1 {[%clk 0:00:51.5]} 31... Nf2+ {[%clk
0:00:17.6]} 32. Kh2 {[%clk 0:00:48.1]} 32... Ne4 {[%clk 0:00:14.4]} 33. Qf4
{[%clk 0:00:43.8]} 33... Ng5 {[%clk 0:00:10]} 34. Nd4 {[%clk 0:00:41.7]} 34...
Bxd4 {[%clk 0:00:09.6]} 35. cxd4 {[%clk 0:00:41.4]} 35... h6 {[%clk 0:00:09.5]}
36. Qf5 {[%clk 0:00:37.6]} 36... Qe2 {[%clk 0:00:08.7]} 37. Bd1 {[%clk
0:00:28.5]} 37... Qxb2 {[%clk 0:00:08.3]} 38. Qf4 {[%clk 0:00:25.5]} 38... Qb6
{[%clk 0:00:06.6]} 39. Bg4 {[%clk 0:00:23.3]} 39... Qd8 {[%clk 0:00:06.6]} 40.
Bf5 {[%clk 0:00:22]} 40... Qe7 {[%clk 0:00:06.3]} 41. Rc1 {[%clk 0:00:20.2]}
41... Qe2 {[%clk 0:00:06.5]} 42. Bg4 {[%clk 0:00:18]} 42... Qe3 {[%clk
0:00:06.8]} 43. Qxe3 {[%clk 0:00:17.5]} 43... Rxe3 {[%clk 0:00:07.3]} 44. Rc8+
{[%clk 0:00:17.5]} 44... Kh7 {[%clk 0:00:07.7]} 45. Bf5+ {[%clk 0:00:17.7]}
45... g6 {[%clk 0:00:08]} 46. hxg6+ {[%clk 0:00:17.9]} 46... fxg6 {[%clk
0:00:08.9]} 47. Bg4 {[%clk 0:00:18.1]} 47... Rd3 {[%clk 0:00:08.1]} 48. Rc7+
{[%clk 0:00:17]} 48... Kg8 {[%clk 0:00:08.1]} 49. Rxb7 {[%clk 0:00:17.1]} 49...
Rxd4 {[%clk 0:00:08.6]} 50. Be6+ {[%clk 0:00:16.3]} 50... Kf8 {[%clk 0:00:07.4]}
51. Rb6 {[%clk 0:00:14.4]} 51... Nxe6 {[%clk 0:00:06.1]} 52. dxe6 {[%clk
0:00:15.3]} 52... Ke7 {[%clk 0:00:06.7]} 53. Rxa6 {[%clk 0:00:15.4]} 53... Kxe6
{[%clk 0:00:07.1]} 54. Kg3 {[%clk 0:00:15.4]} 54... Rd3+ {[%clk 0:00:07.1]} 55.
Kf4 {[%clk 0:00:15]} 55... Rd2 {[%clk 0:00:07.6]} 56. Kf3 {[%clk 0:00:14.7]}
56... Rd3+ {[%clk 0:00:07.6]} 57. Ke2 {[%clk 0:00:14.8]} 57... Rg3 {[%clk
0:00:08]} 58. Kf2 {[%clk 0:00:15]} 58... Rg5 {[%clk 0:00:08.9]} 59. a4 {[%clk
0:00:14.1]} 59... Rc5 {[%clk 0:00:08.9]} 60. a5 {[%clk 0:00:13.6]} 60... Rc2+
{[%clk 0:00:09.3]} 61. Kg3 {[%clk 0:00:13.5]} 61... g5 {[%clk 0:00:09.8]} 62.
Ra8 {[%clk 0:00:11.8]} 62... h5 {[%clk 0:00:10.2]} 63. a6 {[%clk 0:00:12]} 63...
h4+ {[%clk 0:00:09.9]} 64. Kh3 {[%clk 0:00:11.7]} 64... Rc3+ {[%clk 0:00:09.5]}
65. Kh2 {[%clk 0:00:11.3]} 65... g4 {[%clk 0:00:09.1]} 66. a7 {[%clk 0:00:11.4]}
66... Rc2 {[%clk 0:00:08.9]} 67. Re8+ {[%clk 0:00:10]} 67... Kf5 {[%clk
0:00:08.7]} 68. a8=Q {[%clk 0:00:09.8]} 68... g3+ {[%clk 0:00:07.7]} 69. Kh3
{[%clk 0:00:07.8]} 1-0